Cogmind - Beta 12 X4 --- EXPLORER MODE // 2022.10.29 @ 17:12:11 Player: Sardaukar Result: Destroyed by Alpha 7 with Heavy Quantum Rifle Performance ------------- Evolutions (9) 4500 Regions Visited (23) 4600 Robots Destroyed (412) 2060 Value Destroyed (19605) 19605 Prototype IDs (62) 1240 Alien Tech Used (0) 0 Bonus (19945) 19945 TOTAL SCORE: 51950 Bonus ------- High Alert Combat Kills 1721 Follower Combat Kills 824 Network Hubs Disabled 200 Met Warlord at Base 500 MAIN.C Attacked Warlord 500 Warlord Defense Kills 2570 Built Enhanced Grunts 300 Met Warlord at Research 2000 Destroyed MAIN.C Guards 500 Met MAIN.C 5000 Destroyed MAIN.C Shell 5000 Met Warlord at Command 2000 Friendly Fire -1170 Cogmind --------- Core Integrity 0/1600 Matter 187/300 Energy 28/100 System Corruption 14% Temperature Cool (9) Movement Walking (110) Location -1/Command Parts ------- > --- POWER (2) -------- (None) > --- PROPULSION (6) --- Biometal Leg > --- UTILITY (13) ----- Enhanced Optical Array Advanced System Shield > --- WEAPON (5) ------- (None) > --- INVENTORY (5) ---- Xenon Bombardment Thruster Advanced Component Analysis Suite KE Penetrator Peak State ------------ > --- POWER ------------ Micro Antimatter Reactor Micro Antimatter Reactor > --- PROPULSION ------- Antigrav Array Combat Linear Gravjet Combat Linear Gravjet Combat Linear Gravjet Combat Linear Gravjet > --- UTILITY ---------- Advanced Heat Sink Large Storage Unit Enhanced Optical Array Long-range Sensor Array Advanced Signal Interpreter Long-range Terrain Scanner Experimental Targeting Computer Advanced Target Analyzer Centrium Medium Armor Plating Medium Regenerative Plating Experimental Hacking Suite Advanced System Shield Improved System Guard > --- WEAPON ----------- Helical Railgun Helical Railgun Helical Railgun Helical Railgun Helical Railgun > --- INVENTORY -------- Light Quantum Reactor Antigrav Array Combat Linear Gravjet Compact Matter Pod Advanced Transmission Jammer Experimental Reaction Control System Advanced Component Analysis Suite Advanced System Restoration Module KE Penetrator Railgun Fusion Bomb Launcher Shock Maul Sapper Charge [Rating: 203] Favorites ----------- Power Light Quantum Reactor Engine Light Angular Momentum Engine Power Core Light Nuclear Core Reactor Light Quantum Reactor Propulsion Combat Gravmag System Treads Centrium Heavy Treads Leg Aluminum Leg Wheel Wheel Hover Unit Combat Gravmag System Flight Unit Xenon Bombardment Thruster Utility Experimental Targeting Computer Device Long-range Sensor Array Storage Large Storage Unit Processor Experimental Targeting Computer Hackware Advanced System Shield Protection Centrium Medium Armor Plating Weapon Helical Railgun Energy Gun Vortex Rail Energy Cannon Enhanced Nova Cannon Ballistic Gun Helical Railgun Ballistic Cannon Graviton Cannon Launcher Mini Grenade Launcher Impact Weapon Shock Maul Piercing Weapon Lance Build | -11 -10 -9 -9 -8 -7 -6 -5 -5 -5 -5 -5 -4 -4 -4 -4 -4 -4 -3 -3 -2 -2 -1 -1 ------- Run | Scr Mat Mat Sto Mat Fac Fac Fac Ext Cet Arc Hub Fac Was Fac Upp Upp War Pro Res Res Tes Acc Com Slots Evolved 19 | . 1 2 . 2 2 2 2 . . . . 2 . . . . . . 2 2 . 2 . Power 1 | . . . . . . . . . . . . . . . . . . . 1 . . . . Propulsion 4 | . . 2 . . . 2 . . . . . . . . . . . . . . . . . Utility 11 | . 1 . . 1 1 . 2 . . . . 2 . . . . . . 1 2 . 1 . Weapon 3 | . . . . 1 1 . . . . . . . . . . . . . . . . 1 . Parts Attached 583 | 6 14 22 13 10 12 29 54 18 18 3 27 47 3 26 4 9 11 3 68 40 43 64 39 Power 37 | 1 3 . . 1 1 1 2 2 1 1 . 1 2 1 . . 2 . 6 6 2 2 2 Engine 7 | 1 1 . . 1 1 . 2 1 . . . . . . . . . . . . . . . Core 5 | . 2 . . . . 1 . 1 . . . . . . . . . . 1 . . . . Reactor 25 | . . . . . . . . . 1 1 . 1 2 1 . . 2 . 5 6 2 2 2 Propulsion 94 | 2 5 14 . 1 4 10 9 2 3 . 7 13 . 1 . . . . 9 3 3 3 5 Treads 1 | . . . . . . . . . 1 . . . . . . . . . . . . . . Leg 10 | 2 2 5 . . . . . . . . . . . . . . . . . . . . 1 Wheel 4 | . 3 1 . . . . . . . . . . . . . . . . . . . . . Hover 76 | . . 6 . 1 4 10 9 2 2 . 7 13 . 1 . . . . 9 3 3 3 3 Flight 3 | . . 2 . . . . . . . . . . . . . . . . . . . . 1 Utility 283 | 1 5 5 4 5 2 16 25 8 11 1 12 24 1 13 3 9 4 3 32 12 29 42 16 Device 167 | . 1 3 3 2 1 8 13 4 6 1 7 15 . 10 3 6 3 3 18 9 20 23 8 Storage 12 | 1 3 . . . . 1 1 . . . 1 . . . . . . . 2 . . . 3 Processor 21 | . 1 1 . . 1 2 2 . 1 . 2 1 . . . . . . 5 1 . 3 1 Hackware 4 | . . . . . . . 1 . . . . 1 . . . . . . 1 . 1 . . Protection 79 | . . 1 1 3 . 5 8 4 4 . 2 7 1 3 . 3 1 . 6 2 8 16 4 Artifact . | . . . . . . . . . . . . . . . . . . . . . . . . Weapon 169 | 2 1 3 9 3 5 2 18 6 3 1 8 9 . 11 1 . 5 . 21 19 9 17 16 Energy Gun 8 | . . . . . . . . . 1 . . . . . . . 2 . 4 1 . . . Energy Cannon 4 | . . . . . . . . . . . . . . . . . 1 . . . 1 . 2 Ballistic Gun 109 | 2 1 3 6 2 5 1 14 5 2 1 5 5 . 7 1 . 1 . 9 13 6 9 11 Ballistic Cannon 1 | . . . . . . . . . . . . . . . . . . . . . . . 1 Launcher 14 | . . . 3 1 . . 1 1 . . 2 . . 1 . . 1 . 2 . . 1 1 Special Weapon . | . . . . . . . . . . . . . . . . . . . . . . . . Impact Weapon 32 | . . . . . . 1 2 . . . 1 4 . 3 . . . . 6 5 2 7 1 Slashing Weapon . | . . . . . . . . . . . . . . . . . . . . . . . . Piercing Weapon 1 | . . . . . . . 1 . . . . . . . . . . . . . . . . Special Melee Weapon . | . . . . . . . . . . . . . . . . . . . . . . . . Unidentified Prototypes 24 | . . 1 . . . 1 2 . 6 . 2 1 1 . . . 3 . 2 2 1 . 2 Parts Lost 48 | . 1 . . 4 1 . . 4 . . 1 . . . . . . . 4 . . 3 30 Power 6 | . . . . 1 . . . 1 . . . . . . . . . . 1 . . . 3 Propulsion 12 | . . . . 1 1 . . 2 . . 1 . . . . . . . 1 . . . 6 Utility 18 | . . . . 2 . . . 1 . . . . . . . . . . 1 . . 3 11 Weapon 12 | . 1 . . . . . . . . . . . . . . . . . 1 . . . 10 Highest Loss Streak 25 | . 1 . . 4 1 . . 4 . . 1 . . . . . . . 2 . . 1 25 To Critical Strikes 2 | . . . . . . . . . . . . . . . . . . . . . . . 2 Average Slot Usage (%) 95 | . 89 99 100 97 99 93 93 91 93 94 98 98 100 99 100 100 100 100 91 90 93 95 93 Engine 1 | . 8 . . 3 7 3 4 5 4 . . . . . . . . . . . . . . Core 1 | . 3 10 10 4 . 2 . . . . . . . . . . . . . . . . . Reactor 4 | . . . . . . . . . . 5 5 4 5 5 5 5 5 5 7 8 8 6 6 Leg 1 | . 14 14 . . . . . . . . . . . . . . . . . . . . . Hover 22 | . . 20 40 32 27 31 26 25 27 27 31 29 30 30 30 30 30 30 19 15 18 18 18 Device 8 | . 4 5 6 6 13 10 8 3 5 4 3 9 5 6 6 6 7 5 8 7 10 11 8 Storage 5 | . 11 10 10 8 7 6 5 5 5 5 5 5 5 5 5 5 5 5 3 4 4 3 3 Processor 19 | . 10 10 10 5 6 11 16 22 22 27 27 25 25 25 25 25 25 25 21 25 25 22 16 Hackware 4 | . . . . . . . 3 2 . . . 3 5 5 5 5 5 5 8 8 8 7 7 Protection 3 | . . 4 3 11 7 1 4 4 4 . . 2 5 3 3 3 2 5 . 4 1 3 9 Ballistic Gun 18 | . 25 19 19 22 27 23 21 21 22 22 20 17 15 16 19 20 16 10 12 14 12 15 16 Impact Weapon 1 | . . . . . . 1 . . . . . 1 5 3 . . . . 2 1 3 2 . Naked Turns . | . . . . . . . . . . . . . . . . . . . . . . . . Heaviest Build 148 | 16 148 34 34 39 48 62 76 78 78 61 68 76 68 73 68 68 74 74 88 84 89 103 97 Greatest Support 94 | 20 20 52 32 32 35 59 65 65 63 63 63 84 84 87 87 87 87 87 87 86 94 94 94 Greatest Overweight (x) 14 | . 14 10 1 1 1 1 1 1 1 . 1 1 . . . . . . 1 1 . 1 1 Average Overweight (x) . | . 1 . . 1 1 . . . . . . . . . . . . . . . . . . Largest Inventory Capacity 30 | 10 30 15 15 15 15 15 15 15 15 15 15 15 15 15 15 15 15 15 15 15 15 15 15 Average Capacity 15 | 7 18 15 15 15 15 15 15 15 15 15 15 15 15 15 15 15 15 15 14 15 15 15 14 Most Carried 26 | 1 26 15 15 14 15 15 15 15 15 15 15 15 15 15 15 15 15 15 15 15 15 15 15 Average Carried 13 | . 6 13 14 11 12 14 14 14 14 14 14 14 14 14 14 15 14 15 13 14 14 13 13 Final Capacity 15 | 10 15 15 15 15 15 15 15 15 15 15 15 15 15 15 15 15 15 15 15 15 15 15 5 Final Carried 15 | 1 10 15 15 10 15 15 15 15 15 15 15 15 15 15 15 15 15 15 15 15 14 15 3 Class Distribution -------------------- 18% | Hacker-Scout 17% | Hacker-Mutant 16% | Hacker-Gunner 11% | Machinist-Scout 8% | Hacker-Skirmisher 7% | Scavenger-Gunner 6% | Hacker-Ninja 4% | Machinist-Gunner Dominant Class ---------------- Hacker-Mutant | -10/Materials Hacker-Mutant | -9/Materials Hacker-Mutant | -9/Storage Hacker-Skirmisher | -8/Materials Hacker-Skirmisher | -7/Factory Hacker-Skirmisher | -6/Factory Hacker-Gunner | -5/Factory Hacker-Gunner | -5/Extension Scavenger-Gunner | -5/Cetus Scavenger-Gunner | -5/Archives Scavenger-Gunner | -5/Hub_04(d) Scavenger-Gunner | -4/Factory Machinist-Scout | -4/Waste Machinist-Scout | -4/Factory Machinist-Gunner | -4/Upper Caves Machinist-Gunner | -4/Upper Caves Machinist-Scout | -4/Warlord Machinist-Scout | -3/Proximity Caves Hacker-Scout | -3/Research Hacker-Scout | -2/Research Hacker-Ninja | -2/Testing Hacker-Scout | -1/Access Hacker-Gunner | -1/Command Resources | -11 -10 -9 -9 -8 -7 -6 -5 -5 -5 -5 -5 -4 -4 -4 -4 -4 -4 -3 -3 -2 -2 -1 -1 ----------- Run | Scr Mat Mat Sto Mat Fac Fac Fac Ext Cet Arc Hub Fac Was Fac Upp Upp War Pro Res Res Tes Acc Com Matter Collected 18486 | 264 418 714 433 189 369 926 1225 861 336 124 907 1031 259 287 379 489 210 133 1610 1230 671 2477 2944 Remotely 182 | . . . . . . 182 . . . . . . . . . . . . . . . . . Salvage Created 21240 | 93 795 1020 582 691 209 614 993 1015 409 317 1661 857 . 586 161 639 723 122 1729 1218 578 2875 3353 Parts 985 | 3 43 65 32 55 10 37 44 52 21 15 70 45 . 24 9 25 20 1 70 45 44 117 138 Haulers Intercepted 22 | . 1 4 3 3 . . 1 . . . 3 1 . 2 . . . . . . . 4 . Recyclers Shooed 12 | . 3 1 1 1 . . 1 . . . . . . 2 . . . . 1 . . 1 1 Parts Field Recycled . | . . . . . . . . . . . . . . . . . . . . . . . . Retrieved Matter . | . . . . . . . . . . . . . . . . . . . . . . . . Parts Self-Destructed . | . . . . . . . . . . . . . . . . . . . . . . . . Prevented . | . . . . . . . . . . . . . . . . . . . . . . . . Kills | -11 -10 -9 -9 -8 -7 -6 -5 -5 -5 -5 -5 -4 -4 -4 -4 -4 -4 -3 -3 -2 -2 -1 -1 ------- Run | Scr Mat Mat Sto Mat Fac Fac Fac Ext Cet Arc Hub Fac Was Fac Upp Upp War Pro Res Res Tes Acc Com Combat Hostiles Destroyed 265 | . 7 16 10 15 4 12 10 13 5 3 12 10 . 4 4 9 18 3 20 16 8 27 39 Guns 212 | . 7 16 8 8 4 12 6 8 5 3 8 10 . 3 4 9 4 1 14 16 8 22 36 Cannons 1 | . . . . . . . . . . . . . . . . . . . . . . . 1 AOE 52 | . . . 2 7 . . 4 5 . . 4 . . 1 . . 14 2 6 . . 5 2 Classes Destroyed 19 | 1 5 3 . . 1 1 . 1 . . . . . . . . 3 . . 1 1 . 2 Worker 21 | . 2 1 1 3 . 1 1 . . . 4 1 . 1 . . . . 2 . . 2 2 Builder 18 | . 1 . . 6 . 1 4 1 . . 3 . . 1 . . . . . . . 1 . Hauler 22 | . 1 4 3 3 . . 1 . . . 3 1 . 2 . . . . . . . 4 . Recycler 35 | 1 5 5 2 1 1 1 3 2 . . 3 . . 1 . . . . 4 . . 4 2 Operator 5 | . . . . . . . . 2 . 1 1 . . . . . . . 1 . . . . Watcher 43 | . 3 5 2 1 1 . 3 1 1 . 3 3 . 1 . . . . 5 2 1 7 4 Swarmer 40 | . . 4 4 2 . 3 . 5 . . 4 3 . 1 2 . 2 . . . 2 5 3 Grunt 90 | . 7 6 3 12 2 5 6 4 1 . 3 3 . 1 . 2 12 . 5 4 1 . 13 Brawler 2 | . . 1 . . . . . . . . . . . . . . . . . . . . 1 Duelist 3 | . . . . . . . . . . . . . . . . . . . . 1 . . 2 Protector 1 | . . . . . . . . . . . . . . . . . 1 . . . . . . Researcher 1 | . . . . . . . . . . . . . . . . . . . . . 1 . . Sentry 34 | . . 5 3 1 1 1 2 4 . 3 2 1 . . . . . . 1 1 . 4 5 Hunter 16 | . . . . . 1 . . . . . . . . . . . . . . 3 . 6 6 Programmer 55 | . . . . . . 3 2 . . . . 3 . 2 2 3 . . 14 2 5 12 7 Cetus Guard 4 | . . . . . . . . . 4 . . . . . . . . . . . . . . Enhanced Grunt 2 | . . . . . . . . . . . 2 . . . . . . . . . . . . Lightning 3 | . . . . . . . . . . . 3 . . . . . . . . . . . . Striker 6 | . . . . . . . . . . . . . . . . . 2 . . 4 . . . Executioner 2 | . . . . . . . . . . . . . . . . . 1 . . 1 . . . Thug 6 | . . . . . . . . . . . . . . . . 4 . 2 . . . . . Savage 1 | . . . . . . . . . . . . . . . . . . 1 . . . . . Martyr 1 | . . . . . . . . . . . . . . . . . . . . . . . 1 Troll 1 | . . . . . . . . . . . . . . . . . . . . . . . 1 Best Kill Streak 23 | 1 2 11 4 23 2 7 8 8 5 4 10 4 . 2 2 6 16 3 6 3 4 7 17 Combat Bots Only 16 | . 2 6 3 11 2 6 4 7 4 3 5 3 . 2 2 6 16 3 6 3 4 5 13 Max Kills in Single Turn 6 | 1 1 2 2 6 1 2 6 3 1 2 5 2 . 2 1 1 3 1 2 1 2 4 3 Gunslinging 1 | . . 1 . 1 . . . . . 1 . . . . . . . . 1 . 1 1 1 Exploded 4 | . . . 2 2 . . 2 3 . . 4 . . 1 . . 3 1 2 . . 3 2 Melee . | . . . . . . . . . . . . . . . . . . . . . . . . Uniques/NPCs Destroyed . | . . . . . . . . . . . . . . . . . . . . . . . . Combat | -11 -10 -9 -9 -8 -7 -6 -5 -5 -5 -5 -5 -4 -4 -4 -4 -4 -4 -3 -3 -2 -2 -1 -1 -------- Run | Scr Mat Mat Sto Mat Fac Fac Fac Ext Cet Arc Hub Fac Was Fac Upp Upp War Pro Res Res Tes Acc Com Damage Taken 16856 | . 333 293 148 606 284 424 688 547 75 88 298 319 . 356 59 530 441 45 1469 886 717 1819 6431 Core 2572 | . 105 80 6 105 17 33 52 70 . 52 . 56 . 38 . 75 37 5 107 84 31 202 1417 Absorbed by Shields 262 | . . . . . . . . . . . . . . . . . 220 42 . . . . . Redirected to Shielding 102 | . . . . . . . . . . . . . . . . . . . . . . . 102 Regen/Repaired (Parts) 3976 | . 31 33 . . 89 76 . . . . . . . 429 . . 237 . 909 . 413 314 1445 Core Remaining (%) 85 | 100 58 . 78 80 97 96 . . . . 82 . . . . . . 81 91 . 92 . . Volleys Fired 742 | 1 72 54 32 32 11 29 33 26 7 5 32 37 5 20 5 15 12 9 52 49 26 70 108 Largest 5 | 2 2 2 2 3 4 4 4 4 4 4 4 4 3 4 4 4 4 4 4 4 4 5 5 Hottest 198 | 40 40 50 53 80 104 96 132 132 134 134 138 140 105 140 140 140 160 160 150 156 152 190 198 Shots Fired 2461 | 2 143 108 58 72 43 105 125 96 29 20 117 116 15 55 14 60 36 32 176 169 83 305 482 Gun 2412 | 2 143 108 51 57 43 105 123 93 29 20 114 116 15 53 14 60 32 32 173 169 83 303 474 Cannon 7 | . . . . . . . . . . . . . . . . . . . . . . . 7 Launcher 42 | . . . 7 15 . . 2 3 . . 3 . . 2 . . 4 . 3 . . 2 1 Special . | . . . . . . . . . . . . . . . . . . . . . . . . Kinetic 2355 | 2 143 108 51 57 43 105 123 93 29 20 114 116 15 53 14 60 16 18 154 161 83 303 474 Thermal 7 | . . . . . . . . . . . . . . . . . . . . . . . 7 Explosive 42 | . . . 7 15 . . 2 3 . . 3 . . 2 . . 4 . 3 . . 2 1 Electromagnetic . | . . . . . . . . . . . . . . . . . . . . . . . . Entropic 57 | . . . . . . . . . . . . . . . . . 16 14 19 8 . . . Robot Hit Streak 82 | 2 22 21 19 15 17 20 32 47 41 9 15 30 35 38 10 34 34 13 82 62 33 40 71 Robot Miss Streak 5 | . 3 4 2 5 1 2 4 3 1 1 2 2 1 1 . 1 1 1 2 1 1 2 2 Penetration Max 3 | . . . . . . . . 1 1 1 1 1 . 3 . . 2 . 1 1 1 1 2 Secondary Targets 44 | . 2 1 2 1 . . . 1 3 1 . . . . 1 1 2 . 3 5 4 8 9 Max Gunslinging Chain 2 | . 1 1 1 1 . . . 1 1 1 . . . . 1 1 1 . 1 1 2 1 2 Shots Hit Robots 1872 | 2 110 87 40 49 33 76 103 61 22 14 83 87 14 41 10 53 23 20 141 151 65 205 382 Core Hits 975 | 2 41 48 28 63 22 59 88 45 13 7 59 34 . 25 5 20 39 6 57 45 17 90 162 Critical Kills 81 | . . . . . . . 3 11 5 4 9 6 . 3 . 3 1 . 6 2 3 7 18 Critical Parts Destroyed 143 | . . 2 1 1 . . 4 11 6 1 8 11 2 7 . 8 4 2 18 6 7 13 31 Critical Strikes 240 | . . 2 1 1 . . 8 22 11 6 17 17 6 11 . 11 5 2 24 10 10 21 55 Destroy 225 | . . 2 1 1 . . 8 22 11 6 17 17 6 10 . 11 3 . 17 10 8 20 55 Smash 5 | . . . . . . . . . . . . . . 1 . . . . 1 . 2 1 . Detonate 10 | . . . . . . . . . . . . . . . . . 2 2 6 . . . . Melee Attacks 216 | . . . . . . 13 3 . . . 1 19 . 23 1 . . . 31 20 31 61 13 Impact 216 | . . . . . . 13 3 . . . 1 19 . 23 1 . . . 31 20 31 61 13 Slashing . | . . . . . . . . . . . . . . . . . . . . . . . . Piercing . | . . . . . . . . . . . . . . . . . . . . . . . . Sneak Attacks 6 | . . . . . . . . . . . . . . 1 . . . . 3 . 1 1 . Combat Hostiles . | . . . . . . . . . . . . . . . . . . . . . . . . Follow-up Attacks . | . . . . . . . . . . . . . . . . . . . . . . . . Damage Inflicted 57163 | 21 1204 1737 1132 2386 608 1438 2567 1582 369 227 3082 1931 278 1769 227 1751 2917 748 6499 4392 2253 7933 10112 Guns 45899 | 21 1204 1737 926 818 608 1370 1835 996 369 227 2166 1931 278 1037 227 1751 849 655 4480 4392 2100 6632 9290 Cannons 160 | . . . . . . . . . . . . . . . . . . . . . . . 160 Explosions 10136 | . . . 206 1560 . . 732 586 . . 916 . . 597 . . 2068 93 1636 . . 1080 662 Melee 960 | . . . . . . 68 . . . . . . . 135 . . . . 383 . 153 221 . Ramming 8 | . . . . 8 . . . . . . . . . . . . . . . . . . . Kinetic 43865 | 21 1204 1737 926 818 608 1370 1835 996 369 227 2166 1931 278 1037 227 1751 399 250 3679 4014 2100 6632 9290 Thermal 1591 | . . . . . . . . . . . . . . . . . 279 . 1152 . . . 160 Explosive 8297 | . . . 206 1560 . . 732 586 . . 601 . . 597 . . 1789 . 484 . . 1080 662 Electromagnetic 408 | . . . . . . . . . . . 315 . . . . . . 93 . . . . . Impact 960 | . . . . . . 68 . . . . . . . 135 . . . . 383 . 153 221 . Slashing . | . . . . . . . . . . . . . . . . . . . . . . . . Piercing . | . . . . . . . . . . . . . . . . . . . . . . . . Entropic 2034 | . . . . . . . . . . . . . . . . . 450 405 801 378 . . . Highest Corruption 14 | . 1 . . . 1 3 3 8 7 4 6 . . . . . 3 . 6 . . . 14 Average Corruption 2 | . 1 . . . 1 2 2 5 5 4 4 . . . . . 1 . 5 . . . 13 Corruption Purged 26 | . . . . . . . . 2 3 . . . . . . . 3 . 3 . . 10 5 Corruption Blocked 88 | . . . . . . . . . . . . . . . . . . . 1 67 20 . . Effects 89 | . 5 . . . 4 11 9 14 10 2 13 . . . . . 1 . 19 . . . 1 Message Errors 27 | . 2 . . . 2 4 3 1 4 . 4 . . . . . 1 . 6 . . . . Matter Fused 14 | . . . . . . 1 . 3 3 1 1 . . . . . . . 5 . . . . Heat Flow Errors 8 | . 1 . . . . 3 1 1 1 . . . . . . . . . 1 . . . . Energy Discharges 12 | . 1 . . . . 2 1 4 . . 1 . . . . . . . 3 . . . . Parts Rejected 2 | . . . . . . . 1 . . . . . . . . . . . . . . . 1 Data Loss (minor) 9 | . 1 . . . 1 . 1 2 . 1 3 . . . . . . . . . . . . Data Loss (major) 7 | . . . . . 1 . 1 2 1 . 2 . . . . . . . . . . . . Misfires 9 | . . . . . . 1 1 1 1 . 2 . . . . . . . 3 . . . . Alerts 1 | . . . . . . . . . . . . . . . . . . . 1 . . . . Overload Shots . | . . . . . . . . . . . . . . . . . . . . . . . . Overflow Damage 1204 | . . . . 8 . . . 4 . . 1 . . 150 . . 24 . 465 . 153 241 158 Projectiles 47 | . . . . . . . . . . . . . . . . . . . . . . . 47 Explosions 345 | . . . . 8 . . . 4 . . 1 . . 15 . . 24 . 142 . . 40 111 Melee 812 | . . . . . . . . . . . . . . 135 . . . . 323 . 153 201 . Knockbacks 4 | . . . . . . . . . . . . . . 1 . . . . 2 . 1 . . Impact 4 | . . . . . . . . . . . . . . 1 . . . . 2 . 1 . . Kinetic . | . . . . . . . . . . . . . . . . . . . . . . . . Secondary . | . . . . . . . . . . . . . . . . . . . . . . . . Self-Inflicted Damage 449 | . . . . 82 . . . 64 . . 101 . . . . . 46 . 124 . . 14 18 Shots 20 | . . . . 4 . . . 5 . . 3 . . . . . 2 . 4 . . 1 1 Rammed 1 | . . . . 1 . . . . . . . . . . . . . . . . . . . Targets Rammed 1 | . . . . 1 . . . . . . . . . . . . . . . . . . . Kicked . | . . . . . . . . . . . . . . . . . . . . . . . . Crushed . | . . . . . . . . . . . . . . . . . . . . . . . . Highest Temperature 512 | . 201 45 54 215 138 329 431 357 320 311 358 359 213 304 240 360 411 366 369 512 327 342 358 Average Temperature 82 | . 23 11 17 76 46 103 106 87 71 108 138 87 26 41 84 137 58 125 70 142 55 81 96 Received Heat Transfer 2665 | . 252 129 72 324 87 213 219 117 . 27 27 72 . 115 . 228 118 17 132 63 72 75 306 Effects 30 | . . . . 3 . 1 2 2 . . 4 2 . 2 1 4 1 . 6 2 . . . Shutdowns 2 | . . . . . . . . . . . . . . . . . 1 . . 1 . . . Energy Bleed 5 | . . . . . . . . 1 . . . 2 . . 1 . . . . 1 . . . Interference 18 | . . . . 3 . . 1 . . . 3 . . 2 . 3 . . 6 . . . . Short Circuit 4 | . . . . . . 1 1 1 . . 1 . . . . . . . . . . . . Damage (minor) 1 | . . . . . . . . . . . . . . . . 1 . . . . . . . Siege Activations . | . . . . . . . . . . . . . . . . . . . . . . . . Robots Corrupted 2 | . . . . . . . . . . . 2 . . . . . . . . . . . . Combat Hostiles . | . . . . . . . . . . . . . . . . . . . . . . . . Parts Fried 22 | . . . . . . . . . . . 5 . . 2 . . 2 . 8 . 2 3 . Impact Corruptions 16 | . . . . . . . . . . . . . . 4 . . . . 7 . 3 2 . Robots Melted . | . . . . . . . . . . . . . . . . . . . . . . . . Combat Hostiles . | . . . . . . . . . . . . . . . . . . . . . . . . Parts Melted . | . . . . . . . . . . . . . . . . . . . . . . . . Heat Transferred 936 | . . . . . . . . . . . . . . . . . 175 . 650 . . . 111 Parts Sabotaged . | . . . . . . . . . . . . . . . . . . . . . . . . Parts Stolen . | . . . . . . . . . . . . . . . . . . . . . . . . Parts Stripped . | . . . . . . . . . . . . . . . . . . . . . . . . Power Chain Reactions 1 | . . . . . . . . . . . 1 . . . . . . . . . . . . Missiles Intercepted . | . . . . . . . . . . . . . . . . . . . . . . . . Alert | -11 -10 -9 -9 -8 -7 -6 -5 -5 -5 -5 -5 -4 -4 -4 -4 -4 -4 -3 -3 -2 -2 -1 -1 ------- Run | Scr Mat Mat Sto Mat Fac Fac Fac Ext Cet Arc Hub Fac Was Fac Upp Upp War Pro Res Res Tes Acc Com Peak Influence 1120 | 5 159 367 364 637 309 332 278 619 388 262 1120 320 71 229 . . . . 258 363 275 588 983 Initial 300 | . 2 3 19 110 210 10 68 75 150 108 62 300 52 37 . . . . . 108 83 124 105 Average 172 | 1 45 151 91 327 156 91 108 324 248 238 550 146 54 65 . . . . 69 98 131 239 625 Maximum Alert Level 4 | . . 1 1 2 1 1 1 2 1 1 4 1 . 1 . . . . 1 1 1 2 3 Low Security (%) 68 | 100 100 73 78 42 57 84 88 32 8 19 15 61 100 98 . . . . 95 90 72 44 2 Level 1 20 | . . 26 21 17 42 15 11 29 91 80 20 38 . 1 . . . . 4 9 27 42 15 Level 2 6 | . . . . 39 . . . 38 . . 33 . . . . . . . . . . 12 43 Level 3 3 | . . . . . . . . . . . 25 . . . . . . . . . . . 38 Level 4 . | . . . . . . . . . . . 5 . . . . . . . . . . . . Level 5 . | . . . . . . . . . . . . . . . . . . . . . . . . High Security . | . . . . . . . . . . . . . . . . . . . . . . . . Max Security . | . . . . . . . . . . . . . . . . . . . . . . . . Squads Dispatched 59 | . 1 2 1 5 3 4 2 5 . . 2 4 . 7 . . . . 7 1 4 4 7 Investigation 10 | . 1 . . . . . 1 2 . . . . . 2 . . . . 1 . . . 3 Extermination 22 | . . . . . 1 4 1 . . . . 3 . 2 . . . . 5 . 2 2 2 Reinforcement 20 | . . 2 1 2 1 . . 3 . . 2 1 . 3 . . . . . 1 2 1 1 Assault 2 | . . . . . 1 . . . . . . . . . . . . . . . . . 1 Garrison 5 | . . . . 3 . . . . . . . . . . . . . . 1 . . 1 . Intercept . | . . . . . . . . . . . . . . . . . . . . . . . . Searches Triggered . | . . . . . . . . . . . . . . . . . . . . . . . . Construction Impeded 4 | . . . . 1 . . . . . . . . . 2 . . . . . . . 1 . Haulers Reinforced 3 | . . . . . . . . . . . 1 . . 1 . . . . . 1 . . . Active Scanning Responses . | . . . . . . . . . . . . . . . . . . . . . . . . Cargo Convoy Interrupts 1 | . . . . . 1 . . . . . . . . . . . . . . . . . . Stealth | -11 -10 -9 -9 -8 -7 -6 -5 -5 -5 -5 -5 -4 -4 -4 -4 -4 -4 -3 -3 -2 -2 -1 -1 --------- Run | Scr Mat Mat Sto Mat Fac Fac Fac Ext Cet Arc Hub Fac Was Fac Upp Upp War Pro Res Res Tes Acc Com Distress Signals 30 | . . 3 3 3 . . 1 3 1 . 2 1 . 1 . . 2 . . 6 2 1 1 Communications Jammed 3 | . . . . . . . . . . . . . . 1 . . . . . . . 1 1 Distress Signals 3 | . . . . . . . . . . . . . . 1 . . . . . . . 1 1 Times Spotted 545 | . 13 26 12 22 6 22 20 25 10 2 18 17 1 19 5 15 20 3 24 45 16 42 162 Peak Tracking Total 122 | . 2 6 3 6 2 6 5 5 5 1 5 5 1 6 3 7 12 3 4 6 7 5 122 Tactical Retreats 37 | . 1 . . 2 . 5 5 1 . . . 1 . 5 . . . . . 6 5 3 3 Traps | -11 -10 -9 -9 -8 -7 -6 -5 -5 -5 -5 -5 -4 -4 -4 -4 -4 -4 -3 -3 -2 -2 -1 -1 ------- Run | Scr Mat Mat Sto Mat Fac Fac Fac Ext Cet Arc Hub Fac Was Fac Upp Upp War Pro Res Res Tes Acc Com Traps Triggered 24 | . 3 . . . 3 . 1 3 . . 2 3 . 2 . . . . 1 . . 3 3 Indirectly . | . . . . . . . . . . . . . . . . . . . . . . . . Trap Hack Attempts . | . . . . . . . . . . . . . . . . . . . . . . . . Triggered . | . . . . . . . . . . . . . . . . . . . . . . . . Disarmed . | . . . . . . . . . . . . . . . . . . . . . . . . Reprogrammed . | . . . . . . . . . . . . . . . . . . . . . . . . Reused . | . . . . . . . . . . . . . . . . . . . . . . . . Traps Extracted . | . . . . . . . . . . . . . . . . . . . . . . . . Installed . | . . . . . . . . . . . . . . . . . . . . . . . . Triggered 18 | . . . . . 1 . . . . . . . . . 1 . 16 . . . . . . Machines | -11 -10 -9 -9 -8 -7 -6 -5 -5 -5 -5 -5 -4 -4 -4 -4 -4 -4 -3 -3 -2 -2 -1 -1 ---------- Run | Scr Mat Mat Sto Mat Fac Fac Fac Ext Cet Arc Hub Fac Was Fac Upp Upp War Pro Res Res Tes Acc Com Machines Disabled 49 | . 1 1 5 2 . . . 2 . 2 6 2 . 5 . 1 . . 1 . 11 6 4 Max in Single Turn 4 | . 1 1 1 1 . . . 1 . 1 3 1 . 4 . 1 . . 1 . 1 1 2 Garrison Access 9 | . . . . . 1 1 . . . . . 1 . . . . . . 1 1 1 3 . Network Hub 1 | . . . . . . . . . . . 1 . . . . . . . . . . . . Energy Cycler 1 | . . . . . . . . 1 . . . . . . . . . . . . . . . Machines Sabotaged . | . . . . . . . . . . . . . . . . . . . . . . . . Overloaded Fab Kills . | . . . . . . . . . . . . . . . . . . . . . . . . Hacking | -11 -10 -9 -9 -8 -7 -6 -5 -5 -5 -5 -5 -4 -4 -4 -4 -4 -4 -3 -3 -2 -2 -1 -1 --------- Run | Scr Mat Mat Sto Mat Fac Fac Fac Ext Cet Arc Hub Fac Was Fac Upp Upp War Pro Res Res Tes Acc Com Machines Accessed 151 | . 9 7 6 3 9 7 11 7 3 1 2 11 . 9 . 1 7 . 13 3 13 17 12 Terminals 91 | . 8 5 6 1 4 3 5 7 3 . 2 7 . 4 . . . . 8 2 7 9 10 Fabricators 12 | . . . . . 2 1 3 . . . . 1 . 1 . . . . 1 . 2 1 . Repair Stations 14 | . 1 1 . . 1 1 1 . . . . 1 . 1 . . . . 1 . 1 3 2 Recycling Units 7 | . . . . 1 1 1 . . . . . . . 2 . . . . 2 . . . . Scanalyzers 9 | . . 1 . 1 1 . 2 . . . . . . 1 . . . . . . 2 1 . Garrison Access 9 | . . . . . . 1 . . . . . 2 . . . . . . 1 1 1 3 . Total Hacks 601 | . 30 25 15 10 20 19 34 16 5 5 6 77 . 34 . 1 17 . 62 19 79 77 50 Successful 372 | . 19 19 11 7 12 9 26 8 5 5 5 45 . 24 . 1 17 . 35 6 50 45 23 Failed 229 | . 11 6 4 3 8 10 8 8 . . 1 32 . 10 . . . . 27 13 29 32 27 Catastrophic 35 | . 2 . 1 . 1 3 . 2 . . . 4 . 2 . . . . 4 5 4 2 5 Database Lockouts . | . . . . . . . . . . . . . . . . . . . . . . . . Manual 191 | . 15 4 5 . 6 2 14 3 1 1 2 48 . 5 . . . . 26 17 5 18 19 Terminals 375 | . 28 14 15 5 10 10 21 16 5 . 6 57 . 14 . . . . 45 18 23 48 40 Fabricators 40 | . . . . . 4 1 6 . . . . 12 . 2 . . . . 5 . 6 4 . Repair Stations 67 | . 2 2 . . 2 2 2 . . . . 3 . 9 . . . . 8 . 15 12 10 Recycling Units 13 | . . . . 3 1 3 . . . . . . . 3 . . . . 3 . . . . Scanalyzers 62 | . . 9 . 2 3 . 5 . . . . . . 6 . . . . . . 32 5 . Garrison Access 21 | . . . . . . 3 . . . . . 5 . . . . . . 1 1 3 8 . Terminal Hacks 183 | . 15 8 11 3 4 4 16 8 5 5 5 21 . 4 . 1 17 . 12 3 10 21 10 Record 33 | . . 1 . . . . . . 4 5 . . . 1 . . 15 . 4 . . 2 1 Part Schematic 12 | . 1 . . . . . 4 . . . . 4 . . . . . . . . 3 . . Robot Analysis 15 | . 3 1 . . 1 . 1 . . . 1 5 . . . . . . 1 . . 1 1 Prototype ID Bank 13 | . 1 1 2 . 1 2 2 . . . . . . . . . . . 1 . 2 1 . Open Door 13 | . . . 3 . . . . 3 1 . . . . . . 1 2 . . . 1 1 1 Open DSF 1 | . . . . . . . . . . . . . . 1 . . . . . . . . . Level Access Points 6 | . . . . . . . 1 . . . . 1 . 1 . . . . 1 . . 1 1 Branch Access Points 8 | . . . 1 1 . . 1 . . . 1 1 . 1 . . . . 1 . . 1 . Emergency Access Points 3 | . . 1 . . . . . . . . . 1 . . . . . . . . . 1 . Machine Index 1 | . . . . . . . . . . . . 1 . . . . . . . . . . . Terminal Index 10 | . 2 . . . 1 . 1 . . . . 1 . . . . . . 1 1 1 1 1 Fabricator Index 4 | . . . . . . . . . . . . 1 . . . . . . 1 1 . 1 . Repair Station Index 1 | . . . . . . . . . . . . . . . . . . . . . . . 1 Recycling Unit Index 1 | . . . . . . . . . . . . . . . . . . . . . . 1 . Garrison Index 2 | . . . . . . . . . . . . 1 . . . . . . . . . . 1 Alert Level 11 | . . . . . . . . 1 . . 1 . . . . . . . 1 1 2 3 2 Unreport Threat 15 | . 4 . 2 . . . 3 . . . 1 2 . . . . . . . . . 3 . Locate Traps 4 | . . . . 1 . . . 1 . . . 1 . . . . . . . . . 1 . Dispatch Records 4 | . 1 1 . . . . . 1 . . . 1 . . . . . . . . . . . Security Status 1 | . . . 1 . . . . . . . . . . . . . . . . . . . . Recall Investigation 1 | . . . . . . . . . . . . . . . . . . . 1 . . . . Recall Extermination 1 | . . . . . . 1 . . . . . . . . . . . . . . . . . Recall Reinforcements 2 | . . 1 . . . . . . . . 1 . . . . . . . . . . . . Hauler Manifests 1 | . . . . . . . 1 . . . . . . . . . . . . . . . . Registered Components 2 | . . . 1 . . . . . . . . . . . . . . . . . 1 . . Registered Prototypes 2 | . 1 . 1 . . . . . . . . . . . . . . . . . . . . Zone Layout 15 | . 2 2 . 1 1 1 2 2 . . . 1 . . . . . . . . . 3 . Disengage Seal 1 | . . . . . . . . . . . . . . . . . . . . . . . 1 Fabricator Hacks 37 | . . . . . 4 1 6 . . . . 12 . 2 . . . . 4 . 4 4 . Network Status 5 | . . . . . 3 . 1 . . . . . . . . . . . . . 1 . . Load Schematic 15 | . . . . . . . 2 . . . . 6 . 1 . . . . 2 . 2 2 . Build 17 | . . . . . 1 1 3 . . . . 6 . 1 . . . . 2 . 1 2 . Repair Station Hacks 51 | . 2 2 . . 2 2 1 . . . . 1 . 9 . . . . 8 . 11 5 8 Scan Component 28 | . 1 1 . . 1 1 1 . . . . 1 . 5 . . . . 4 . 6 3 4 Repair 23 | . 1 1 . . 1 1 . . . . . . . 4 . . . . 4 . 5 2 4 Recycling Unit Hacks 10 | . . . . 3 1 1 . . . . . . . 2 . . . . 3 . . . . Report Inventory 3 | . . . . 1 . . . . . . . . . 1 . . . . 1 . . . . Retrieve Matter 3 | . . . . 1 . 1 . . . . . . . . . . . . 1 . . . . Retrieve Components 4 | . . . . 1 1 . . . . . . . . 1 . . . . 1 . . . . Scanalyzer 48 | . . 9 . 1 1 . 3 . . . . . . 6 . . . . . . 24 4 . Insert Component 22 | . . 5 . 1 1 . 1 . . . . . . 2 . . . . . . 10 2 . Analyze 26 | . . 4 . . . . 2 . . . . . . 4 . . . . . . 14 2 . Garrison Access Hacks 8 | . . . . . . 1 . . . . . 1 . . . . . . 1 1 1 3 . Seal Access 8 | . . . . . . 1 . . . . . 1 . . . . . . 1 1 1 3 . Unauthorized Hacks 35 | . 2 . . . . . . . . . . 10 . 1 . . . . 7 2 . 8 5 Terminals 31 | . 2 . . . . . . . . . . 7 . . . . . . 7 2 . 8 5 Assimilate 8 | . . . . . . . . . . . . 1 . . . . . . 1 . . 4 2 Botnet 17 | . 1 . . . . . . . . . . 5 . . . . . . 4 2 . 3 2 Operators 6 | . 1 . . . . . . . . . . 1 . . . . . . 2 . . 1 1 Fabricators . | . . . . . . . . . . . . . . . . . . . . . . . . Repair Stations . | . . . . . . . . . . . . . . . . . . . . . . . . Recycling Units 1 | . . . . . . . . . . . . . . 1 . . . . . . . . . Tunnel 1 | . . . . . . . . . . . . . . 1 . . . . . . . . . Scanalyzers . | . . . . . . . . . . . . . . . . . . . . . . . . Garrison Access 3 | . . . . . . . . . . . . 3 . . . . . . . . . . . Broadcast 1 | . . . . . . . . . . . . 1 . . . . . . . . . . . Redirect 1 | . . . . . . . . . . . . 1 . . . . . . . . . . . Watchers 1 | . . . . . . . . . . . . 1 . . . . . . . . . . . Data Cores Recovered 1 | . . . . . . . . . . . 1 . . . . . . . . . . . . Used . | . . . . . . . . . . . . . . . . . . . . . . . . Hacking Detections 117 | . 9 7 4 3 6 6 11 5 2 . 2 8 . 6 . . . . 10 2 11 15 10 Full Trace Events 8 | . 2 . . 1 . . 1 2 . . . . . . . . . . 1 . . . 1 Feedback Events 1 | . 1 . . . . . . . . . . . . . . . . . . . . . . Corruption 1 | . 1 . . . . . . . . . . . . . . . . . . . . . . Feedback Blocked . | . . . . . . . . . . . . . . . . . . . . . . . . Robot Schematics Acquired 4 | . . . . . . . . . . . . . . . . . . . . . 4 . . Robots Built 7 | . . . . . 4 . 1 . . . . . . . . . . . . . 2 . . Authchips . | . . . . . . . . . . . . . . . . . . . . . . . . Time 222 | . . . . . 67 . 81 . . . . . . . . . . . . . 74 . . Total Robot Build Rating 35 | . . . . . 16 . 1 . . . . . . . . . . . . . 18 . . Part Schematics Acquired 32 | . 1 4 . . . . 4 . . . . 4 . 2 . . . . . . 15 2 . Parts Built 22 | . . . . . . 1 4 . . . . 10 . 2 . . . . 3 . . 2 . Authchips . | . . . . . . . . . . . . . . . . . . . . . . . . Time 1189 | . . . . . . 58 83 . . . . 682 . 117 . . . . 89 . . 160 . Total Part Build Rating 129 | . . . . . . 7 16 . . . . 58 . 14 . . . . 19 . . 15 . Parts Repaired 23 | . 1 1 . . 1 1 . . . . . . . 4 . . . . 4 . 5 2 4 Time 1008 | . 38 26 . . 13 22 . . . . . . . 319 . . . . 138 . 230 78 144 Parts Recycled . | . . . . . . . . . . . . . . . . . . . . . . . . Recycled Matter . | . . . . . . . . . . . . . . . . . . . . . . . . Retrieved Matter . | . . . . . . . . . . . . . . . . . . . . . . . . Retrieved Components 5 | . . . . 2 . . . . . . . . . 2 . . . . 1 . . . . Parts Scanalyzed 19 | . . 4 . 1 1 . 1 . . . . . . 2 . . . . . . 8 2 . Part Schematics Acquired 16 | . . 4 . . . . . . . . . . . 2 . . . . . . 8 2 . Parts Damaged 1 | . . . . . . . . . . . . . . . . . . . . . 1 . . Bothacking | -11 -10 -9 -9 -8 -7 -6 -5 -5 -5 -5 -5 -4 -4 -4 -4 -4 -4 -3 -3 -2 -2 -1 -1 ------------ Run | Scr Mat Mat Sto Mat Fac Fac Fac Ext Cet Arc Hub Fac Was Fac Upp Upp War Pro Res Res Tes Acc Com Used RIF Installer . | . . . . . . . . . . . . . . . . . . . . . . . . Robots Hacked . | . . . . . . . . . . . . . . . . . . . . . . . . Non-combat . | . . . . . . . . . . . . . . . . . . . . . . . . Combat . | . . . . . . . . . . . . . . . . . . . . . . . . Robot Hacks Applied . | . . . . . . . . . . . . . . . . . . . . . . . . Relay Couplers Released 11 | . . . . . 2 . 3 . . . . . . . . . . . . 3 . 3 . Machine Destruction 2 | . . . . . 2 . . . . . . . . . . . . . . . . . . Programmers 9 | . . . . . . . 3 . . . . . . . . . . . . 3 . 3 . Fabnet Peak Effective % . | . . . . . . . . . . . . . . . . . . . . . . . . Robots Rewired 6 | . . . . . . . 1 . . . . 1 . . . . 4 . . . . . . Allies Hacked . | . . . . . . . . . . . . . . . . . . . . . . . . Hacks Repelled . | . . . . . . . . . . . . . . . . . . . . . . . . Allies | -11 -10 -9 -9 -8 -7 -6 -5 -5 -5 -5 -5 -4 -4 -4 -4 -4 -4 -3 -3 -2 -2 -1 -1 -------- Run | Scr Mat Mat Sto Mat Fac Fac Fac Ext Cet Arc Hub Fac Was Fac Upp Upp War Pro Res Res Tes Acc Com Total Allies 28 | . . . . . 4 . 2 5 5 . . 2 . . . . 4 . 1 . 2 2 1 Largest Group 5 | . . . . . 4 1 2 3 5 5 5 2 . . . . 4 1 1 . 2 1 1 Highest-Rated Group 480 | . . . . . 48 12 32 171 480 480 480 56 . . . . 236 65 65 . 178 45 45 Highest-Rated Ally 146 | . . . . . 12 12 29 146 146 96 96 47 . . . . 65 65 65 . 89 45 45 Total Orders 12 | . . . 3 . . . . . . . . 6 . . . . . . . . . 3 . STAY 2 | . . . . . . . . . . . . . . . . . . . . . . 2 . FOLLOW 1 | . . . . . . . . . . . . . . . . . . . . . . 1 . EXPLORE 9 | . . . 3 . . . . . . . . 6 . . . . . . . . . . . Ally Attacks 133 | . . . . . 10 1 3 22 22 8 49 6 . . . . 4 . . . 8 . . Total Damage 4478 | . . . . . 118 13 22 616 794 372 2156 193 . . . . 151 . . . 43 . . Kills 25 | . . . . . 1 . . 7 4 1 10 1 . . . . 1 . . . . . . Allies Corrupted 4 | . . . . . . . . . . . 2 . . . . . . . . . 2 . . Allies Melted 1 | . . . . . . . . . . . . . . . . . 1 . . . . . . Intel | -11 -10 -9 -9 -8 -7 -6 -5 -5 -5 -5 -5 -4 -4 -4 -4 -4 -4 -3 -3 -2 -2 -1 -1 ------- Run | Scr Mat Mat Sto Mat Fac Fac Fac Ext Cet Arc Hub Fac Was Fac Upp Upp War Pro Res Res Tes Acc Com Robot Analysis Total 15 | . 3 1 . . 1 . 1 . . . 1 5 . . . . . . 1 . . 1 1 Derelict Logs Recovered 2 | . . . . . . . . . . . . . . . . 2 . . . . . . . Drone Launches 13 | . . . 6 . . . . . . . . 7 . . . . . . . . . . . Drone Recoveries 8 | . . . 4 . . . . . . . . 4 . . . . . . . . . . . Exploration | -11 -10 -9 -9 -8 -7 -6 -5 -5 -5 -5 -5 -4 -4 -4 -4 -4 -4 -3 -3 -2 -2 -1 -1 ------------- Run | Scr Mat Mat Sto Mat Fac Fac Fac Ext Cet Arc Hub Fac Was Fac Upp Upp War Pro Res Res Tes Acc Com Turns Passed 20112 | 54 1349 859 601 305 931 1100 788 536 321 122 413 1565 219 1273 312 317 856 294 1995 1814 1020 1776 1292 Spaces Moved 19226 | 42 669 580 368 185 744 1427 825 487 295 201 492 971 321 1421 472 419 1139 449 1413 2041 1060 1933 1272 Core 21 | 12 . 1 . . . . . . . . . . . . . . . . . . . . 8 Treads . | . . . . . . . . . . . . . . . . . . . . . . . . Legs 405 | 30 270 105 . . . . . . . . . . . . . . . . . . . . . Wheels 473 | . 399 74 . . . . . . . . . . . . . . . . . . . . . Hover 18324 | . . 400 368 185 744 1427 825 487 295 201 492 971 321 1421 472 419 1139 449 1413 2041 1060 1933 1261 Flight 3 | . . . . . . . . . . . . . . . . . . . . . . . 3 Fastest Speed 30 | 50 80 48 48 108 108 40 38 44 40 40 33 30 60 56 56 56 56 56 46 48 44 44 40 Average Speed 59 | 100 155 93 67 108 108 44 49 66 77 40 49 51 60 56 56 56 56 56 52 49 44 47 50 Slowest Speed 610 | 120 610 550 108 112 112 104 108 118 118 40 113 116 60 60 56 56 56 56 131 102 48 135 156 Overloaded Moves . | . . . . . . . . . . . . . . . . . . . . . . . . Propulsion Burnouts . | . . . . . . . . . . . . . . . . . . . . . . . . Robots Hopped 1 | . . . . . . . . . . . 1 . . . . . . . . . . . . Cave-ins Triggered 3 | . . . . . . . . 1 . . . . . . . . . . 1 . . 1 . Exploration Rate (%) 53 | 4 85 46 84 19 20 33 26 69 83 94 51 32 95 26 70 63 96 63 32 39 66 39 43 Regions Visited 23 Branch Regions 11 Pre-discovered Areas 2 | . . . . . . . . . . . . . . 1 . 1 . . . . . . . Known Exits Taken 21 | 1 1 1 1 1 1 1 1 1 1 1 1 . . 1 1 1 1 1 1 1 1 1 . Unknown Exits Taken . | . . . . . . . . . . . . . . . . . . . . . . . . Scrap Searched 5 | . . . . . . . . . . . . . . . 2 2 . 1 . . . . . Spaces Dug 282 | . . . . . . 12 3 49 . . 1 23 . 24 1 . . 3 27 20 27 75 17 Terrain Destroyed 1348 | . . . 77 75 . 12 30 156 . 3 264 36 2 56 10 27 107 24 119 35 36 142 137 Melee 196 | . . . . . . 12 3 . . . 1 19 . 22 1 . . . 27 20 24 54 13 Projectile 276 | . . . . . . . 1 12 . 3 22 17 2 11 9 27 36 24 28 15 11 35 23 AOE 856 | . . . 77 75 . . 23 141 . . 240 . . 23 . . 71 . 63 . . 47 96 Terrain Rammed . | . . . . . . . . . . . . . . . . . . . . . . . . Walls Destroyed . | . . . . . . . . . . . . . . . . . . . . . . . . Machines Disabled . | . . . . . . . . . . . . . . . . . . . . . . . . Actions | -11 -10 -9 -9 -8 -7 -6 -5 -5 -5 -5 -5 -4 -4 -4 -4 -4 -4 -3 -3 -2 -2 -1 -1 --------- Run | Scr Mat Mat Sto Mat Fac Fac Fac Ext Cet Arc Hub Fac Was Fac Upp Upp War Pro Res Res Tes Acc Com Total 25692 | 49 846 791 663 230 842 1800 1119 636 368 231 570 1918 336 1794 505 459 1331 468 2469 2695 1479 2471 1622 Wait 4373 | . 51 106 238 1 61 255 159 61 33 16 4 805 . 290 20 15 139 8 845 513 281 320 152 Move 19201 | 41 668 579 367 184 743 1426 824 485 294 200 489 971 320 1420 471 418 1138 448 1412 2040 1059 1932 1272 Hop 1 | . . . . . . . . . . . 1 . . . . . . . . . . . . Pick Up 227 | 1 32 11 4 1 7 21 15 9 6 3 6 11 3 7 2 1 4 . 32 8 16 11 16 Fast Attach 117 | 6 10 12 2 1 2 3 7 2 5 . 8 10 2 2 . . 3 . 10 6 9 7 10 Attach 81 | . 1 2 1 6 2 2 3 3 3 . . 10 . 1 . . 1 . 14 7 6 7 12 Detach 22 | . . 1 1 . 1 . 1 1 . . . 4 . 1 . . . . 2 4 1 3 2 Swap 386 | . 3 8 10 3 8 24 44 13 10 3 19 27 1 23 4 9 7 3 44 28 28 50 17 Drop 273 | . 9 18 8 1 7 27 29 9 10 4 10 20 5 7 2 1 7 . 27 20 22 10 20 Fire 742 | 1 72 54 32 32 11 29 33 26 7 5 32 37 5 20 5 15 12 9 52 49 26 70 108 Melee 216 | . . . . . . 13 3 . . . 1 19 . 23 1 . . . 31 20 31 61 13 Ram 1 | . . . . 1 . . . . . . . . . . . . . . . . . . . Kick . | . . . . . . . . . . . . . . . . . . . . . . . . Crush . | . . . . . . . . . . . . . . . . . . . . . . . . Escape Stasis 27 | . . . . . . . . 27 . . . . . . . . . . . . . . . Rewire 25 | . . . . . . . 1 . . . . 4 . . . . 20 . . . . . . Trap . | . . . . . . . . . . . . . . . . . . . . . . . . Miscellaneous . | . . . . . . . . . . . . . . . . . . . . . . . . Route ------- -11/Scrapyard -10/Materials (discovered 3 exits: *Mat x2 / *Min) -9/Materials (discovered 2 exits: *Mat / *Sto) -9/Storage (discovered 2 exits: *Mat / Rec) -8/Materials -7/Factory (discovered 2 exits: *Fac / *Low) -6/Factory (discovered 2 exits: *Fac / *Low) -5/Factory (discovered 8 exits: *Fac x4 / *Upp x2 / *Ext x2) -5/Extension (discovered 2 exits: *Fac / *Cet) -5/Cetus -5/Archives (discovered 3 exits: *Fac / *Hub x2) -5/Hub_04(d) (discovered 2 exits: *Fac x2) -4/Factory (discovered 7 exits: *Res x4 / *Upp x2 / Arm) -4/Waste -4/Factory (discovered 7 exits: Res x4 / *Upp x2 / *Arm) -4/Upper Caves -4/Upper Caves (discovered 2 exits: *Res / *War) -4/Warlord -3/Proximity Caves -3/Research (discovered 5 exits: *Res x3 / Qua x2) -2/Research -2/Testing -1/Access (discovered 2 exits: *Sur / *Com) -1/Command (discovered 2 exits: Sur x2) History --------- Turn | Location | Event 7 | -11/Scrapyard | Identified exit to Materials 7 | -11/Scrapyard | Discovered exit to Materials (range 16) 55 | -11/Scrapyard | Entered Materials 55 | -10/Materials | Evolved 1 slot: Utility x1 163 | -10/Materials | Identified exit to Mines 163 | -10/Materials | Discovered exit to Mines (range 13) 310 | -10/Materials | Build established: Hacker-Mutant 312 | -10/Materials | Identified exit to Materials 312 | -10/Materials | Discovered exit to Materials (range 18) 903 | -10/Materials | Build established: Hauler-Mutant 1139 | -10/Materials | Discovered exit to Materials (range 13) 1233 | -10/Materials | Build established: Hacker-Mutant 1377 | -10/Materials | Repaired Lgt. Nuclear Core 1404 | -10/Materials | Entered another Materials area 1404 | -9/Materials | Evolved 2 slots: Propulsion x2 1404 | -9/Materials | Identified exit to Storage 1404 | -9/Materials | Discovered exit to Storage (range 9) 1443 | -9/Materials | Repaired Assault Rifle 1930 | -9/Materials | Identified exit to Materials 1930 | -9/Materials | Discovered exit to Materials (range 15) 2263 | -9/Materials | Entered Storage 2666 | -9/Storage | Identified exit to Recycling 2825 | -9/Storage | Discovered exit to Materials (range 16) 2846 | -9/Storage | Found Prototype Launcher 2864 | -9/Storage | Entered Materials 2864 | -8/Materials | Evolved 2 slots: Utility x1, Weapon x1 2887 | -8/Materials | Garrison activated, responded to threat 2903 | -8/Materials | Identified Scatter Rocket Array 3060 | -8/Materials | Garrison activated, responded to threat 3084 | -8/Materials | Destroyed 11 combat bots 3090 | -8/Materials | Lost 4 parts (1p1n2u) 3108 | -8/Materials | Identified exit to Factory 3108 | -8/Materials | Discovered exit to Factory (range 16) 3169 | -8/Materials | Entered Factory 3169 | -7/Factory | Evolved 2 slots: Utility x1, Weapon x1 3220 | -7/Factory | Identified exit to Lower Caves 3220 | -7/Factory | Discovered exit to Lower Caves (range 14) 3257 | -7/Factory | Repaired Lgt. Armor Plating 3463 | -7/Factory | Build established: Hacker-Skirmisher 3701 | -7/Factory | Identified exit to Factory 3701 | -7/Factory | Discovered exit to Factory (range 10) 3930 | -7/Factory | Cargo convoy interrupted 3942 | -7/Factory | Fabricated S-27 Virus? 4100 | -7/Factory | Entered another Factory area 4100 | -6/Factory | Accompanied by 1 ally 4100 | -6/Factory | Evolved 2 slots: Propulsion x2 4149 | -6/Factory | Identified exit to Lower Caves 4149 | -6/Factory | Discovered exit to Lower Caves (range 2) 4328 | -6/Factory | Identified exit to Factory 4328 | -6/Factory | Discovered exit to Factory (range 3) 4780 | -6/Factory | Repaired Imp. Medium Armor Plating 5024 | -6/Factory | Fabricated Adv. Target Analyzer (x1) 5200 | -6/Factory | Entered another Factory area 5200 | -5/Factory | Evolved 2 slots: Utility x2 5290 | -5/Factory | Identified exit to Factory 5290 | -5/Factory | Discovered exit to Factory (range 10) 5322 | -5/Factory | Fabricated K-01 Serf? 5374 | -5/Factory | Fabricated Hpw. Shotgun (x2) 5505 | -5/Factory | Build established: Hacker-Gunner 5635 | -5/Factory | Fabricated Hyp. Gauss Rifle (x2) 5728 | -5/Factory | Identified exit to Upper Caves 5728 | -5/Factory | Identified exit to Extension 5988 | -5/Factory | Entered Extension 6033 | -5/Extension | Rescued a captive Derelict 6035 | -5/Extension | Rescued a captive Derelict 6042 | -5/Extension | Rescued a captive Derelict 6080 | -5/Extension | Energy Cycler disabled 6080 | -5/Extension | Rescued a captive Derelict 6080 | -5/Extension | Rescued a captive Derelict 6081 | -5/Extension | Rescued a captive Derelict 6081 | -5/Extension | Rescued a captive Derelict 6081 | -5/Extension | Rescued a captive Derelict 6082 | -5/Extension | Rescued a captive Derelict 6082 | -5/Extension | Rescued a captive Derelict 6102 | -5/Extension | Rescued a captive Derelict 6194 | -5/Extension | Spotted B-75 Beast 6201 | -5/Extension | Destroyed 7 combat bots 6210 | -5/Extension | Crushed by falling debris 6211 | -5/Extension | Spotted B-75 Beast 6239 | -5/Extension | Rescued A7 6241 | -5/Extension | Lost 4 parts (1p2n1u) 6313 | -5/Extension | Disrupted transfer network 6504 | -5/Extension | Discovered exit to Factory (range 10) 6508 | -5/Extension | Identified exit to Cetus 6508 | -5/Extension | Discovered exit to Cetus (range 6) 6524 | -5/Extension | Entered Cetus 6524 | -5/Cetus | Accompanied by 1 ally (A7) 6529 | -5/Cetus | Acquired a Cetus Manufacturing Module code from A7 6536 | -5/Cetus | Spotted Cetus Guard 6536 | -5/Cetus | Spotted Cetus Guard 6537 | -5/Cetus | Spotted Cetus Guard 6537 | -5/Cetus | Spotted Cetus Guard 6541 | -5/Cetus | Extracted ID and sensor layout for unrecognized location from A7's data core 6543 | -5/Cetus | Destroyed Cetus Guard 6546 | -5/Cetus | Destroyed Cetus Guard 6550 | -5/Cetus | Destroyed Cetus Guard 6553 | -5/Cetus | Destroyed Cetus Guard 6614 | -5/Cetus | Started Cetus Manufacturing Module 6639 | -5/Cetus | Manufactured an Enhanced Grunt 6664 | -5/Cetus | Manufactured an Enhanced Grunt 6689 | -5/Cetus | Manufactured an Enhanced Grunt 6711 | -5/Cetus | Identified exit to Archives 6711 | -5/Cetus | Discovered exit to Archives (range 22) 6714 | -5/Cetus | Manufactured an Enhanced Grunt 6736 | -5/Cetus | Spotted Cetus Guard 6739 | -5/Cetus | Manufactured an Enhanced Grunt 6835 | -5/Cetus | Build established: Scavenger-Gunner 6845 | -5/Cetus | Entered Archives 6845 | -5/Archives | Accompanied by 5 allies 6874 | -5/Archives | Identified exit to Hub_04(d) 6874 | -5/Archives | Discovered exit to Hub_04(d) (range 22) 6879 | -5/Archives | Unable to access archive contents 6881 | -5/Archives | Discovered exit to Hub_04(d) (range 21) 6883 | -5/Archives | Unable to access archive contents 6887 | -5/Archives | Discovered exit to Factory (range 18) 6925 | -5/Archives | Unable to access archive contents 6932 | -5/Archives | Unable to access archive contents 6967 | -5/Archives | Entered Hub_04(d) 6967 | -5/Hub_04(d) | Accompanied by 5 allies 7043 | -5/Hub_04(d) | Discovered exit to Factory (range 10) 7095 | -5/Hub_04(d) | Discovered exit to Factory (range 21) 7309 | -5/Hub_04(d) | Network Hub disabled 7311 | -5/Hub_04(d) | Spotted Lightning 7312 | -5/Hub_04(d) | Spotted Lightning 7314 | -5/Hub_04(d) | Spotted Lightning 7314 | -5/Hub_04(d) | Destroyed Lightning 7321 | -5/Hub_04(d) | Destroyed Lightning 7344 | -5/Hub_04(d) | Destroyed Lightning 7354 | -5/Hub_04(d) | Found Prototype Processor 7357 | -5/Hub_04(d) | Identified Exp. Targeting Computer 7367 | -5/Hub_04(d) | Found Prototype Device 7380 | -5/Hub_04(d) | Entered Factory 7380 | -4/Factory | Evolved 2 slots: Utility x2 7381 | -4/Factory | Identified Exp. Phase Shifter 7422 | -4/Factory | Identified exit to Research 7422 | -4/Factory | Discovered exit to Research (range 41) 7859 | -4/Factory | Identified exit to Upper Caves 7859 | -4/Factory | Identified exit to Armory 8050 | -4/Factory | Fabricated Lrn. Sensor Array (x1) 8204 | -4/Factory | Fabricated Exp. Targeting Computer (x1) 8313 | -4/Factory | Fabricated Cmb. Gravmag System (x2) 8414 | -4/Factory | Fabricated Hyp. Gauss Rifle (x2) 8527 | -4/Factory | Fabricated Cmb. Gravmag System (x2) 8639 | -4/Factory | Fabricated Cmb. Gravmag System (x2) 8945 | -4/Factory | Sucked down chute 8945 | -4/Factory | Entered Waste 8945 | -4/Waste | The area was eerily silent 9007 | -4/Waste | Identified exit to Factory 9007 | -4/Waste | Discovered exit to Factory (range 11) 9115 | -4/Waste | Build established: Machinist-Scout 9120 | -4/Waste | A Compactor rumbled back to life 9120 | -4/Waste | Spotted C-40 Crusher 9164 | -4/Waste | Entered Factory 9201 | -4/Factory | Discovered exit to Upper Caves (range 5) 9294 | -4/Factory | Repaired Broken Lgt. Quantum Reactor 9358 | -4/Factory | Repaired Railgun 9434 | -4/Factory | Repaired Cmb. Linear Gravjet 9575 | -4/Factory | Repaired Shock Maul 10225 | -4/Factory | Fabricated Railgun (x2) 10437 | -4/Factory | Entered Upper Caves 10735 | -4/Upper Caves | Identified exit to Upper Caves 10735 | -4/Upper Caves | Discovered exit to Upper Caves (range 10) 10749 | -4/Upper Caves | Entered another Upper Caves area 10761 | -4/Upper Caves | Discovered exit to Research (range 15) 10801 | -4/Upper Caves | Learned Research stockpile data 10879 | -4/Upper Caves | Ambushed by wild Derelicts 11033 | -4/Upper Caves | Identified exit to Warlord 11033 | -4/Upper Caves | Discovered exit to Warlord (range 15) 11052 | -4/Upper Caves | Attracted the attention of an 0b10 base 11066 | -4/Upper Caves | Entered Warlord 11068 | -4/Warlord | Build established: Machinist-Gunner 11089 | -4/Warlord | Identified exit to Proximity Caves 11089 | -4/Warlord | Discovered exit to Proximity Caves (range 8) 11396 | -4/Warlord | Warlord's base attacked by MAIN.C 11620 | -4/Warlord | Met Warlord 11662 | -4/Warlord | Found Prototype Energy Cannon 11662 | -4/Warlord | Identified Vortex Driver 11666 | -4/Warlord | Found Prototype Energy Gun 11666 | -4/Warlord | Identified Vortex Rail 11673 | -4/Warlord | Found Vortex Rail 11698 | -4/Warlord | Build established: Machinist-Scout 11746 | -4/Warlord | Warlord forces counterattacked 11780 | -4/Warlord | Opened side exit 11840 | -4/Warlord | Spotted Striker 11856 | -4/Warlord | Spotted Striker 11875 | -4/Warlord | Destroyed Striker 11897 | -4/Warlord | Spotted Executioner 11897 | -4/Warlord | Spotted Striker 11903 | -4/Warlord | Destroyed Striker 11905 | -4/Warlord | Destroyed Executioner 11922 | -4/Warlord | Entered Proximity Caves 11922 | -3/Proximity Caves | Accompanied by 1 ally 11933 | -3/Proximity Caves | Destroyed 16 combat bots 12201 | -3/Proximity Caves | Discovered exit to Research (range 14) 12216 | -3/Proximity Caves | Entered Research 12216 | -3/Research | Accompanied by 1 ally 12216 | -3/Research | Evolved 2 slots: Power x1, Utility x1 12779 | -3/Research | Crushed by falling debris 12990 | -3/Research | Build established: Hacker-Scout 13092 | -3/Research | Found Fusion Bomb Launcher 13220 | -3/Research | Fabricated Exp. Targeting Computer (x1) 13260 | -3/Research | Fabricated Railgun (x2) 13461 | -3/Research | Identified exit to Quarantine 13628 | -3/Research | Identified exit to Research 13678 | -3/Research | Repaired Shock Maul 13734 | -3/Research | Repaired Centrium Medium Armor Plating 13748 | -3/Research | Repaired Lrg. Storage Unit 13794 | -3/Research | Repaired Railgun 14192 | -3/Research | Garrison activated, responded to threat 14211 | -3/Research | Entered another Research area 14211 | -2/Research | Warlord forces began assault on 0b10 14211 | -2/Research | Evolved 2 slots: Utility x2 14321 | -2/Research | Research machine network offline 14741 | -2/Research | Spotted Striker 14758 | -2/Research | Spotted Striker 14775 | -2/Research | Spotted Executioner 14780 | -2/Research | Spotted Executioner 14822 | -2/Research | Borebot progress halted 14836 | -2/Research | Spotted Striker 14836 | -2/Research | Spotted Executioner 14978 | -2/Research | Spotted Striker 15107 | -2/Research | Spotted K2-L0R(L) 15120 | -2/Research | Borebot progress halted 15380 | -2/Research | Spotted Striker 15387 | -2/Research | Destroyed Striker 15557 | -2/Research | Spotted Striker 15564 | -2/Research | Destroyed Striker 15576 | -2/Research | Spotted Executioner 15647 | -2/Research | Spotted Striker 15671 | -2/Research | Destroyed Executioner 15686 | -2/Research | Spotted Striker 15687 | -2/Research | Spotted Striker 15709 | -2/Research | Destroyed Striker 15731 | -2/Research | Destroyed Striker 15805 | -2/Research | Met up with Warlord 15823 | -2/Research | Identified exit to Testing 15823 | -2/Research | Discovered exit to Testing (range 7) 15985 | -2/Research | Spotted Executioner 15985 | -2/Research | Spotted Executioner 15985 | -2/Research | Spotted Striker 16025 | -2/Research | Entered Testing 16063 | -2/Testing | Repaired Lrn. Sensor Array 16119 | -2/Testing | Repaired Helical Railgun 16174 | -2/Testing | Repaired Helical Railgun 16230 | -2/Testing | Repaired Helical Railgun 16268 | -2/Testing | Repaired Cmb. Linear Gravjet 16354 | -2/Testing | Build established: Hacker-Ninja 16381 | -2/Testing | Found Prototype Device 16391 | -2/Testing | Identified Exp. Hardlight Generator 16449 | -2/Testing | Found Prototype Energy Cannon 16476 | -2/Testing | Identified Disintegrator 16668 | -2/Testing | Found Prototype Energy Gun 16803 | -2/Testing | Fabricated X-87 Electro? 16887 | -2/Testing | Found Prototype Hackware 16974 | -2/Testing | Found Med. Regenerative Plating 16985 | -2/Testing | Found Prototype Protection 16985 | -2/Testing | Identified SHELL Armor 17020 | -2/Testing | Identified Exp. Hacking Suite 17027 | -2/Testing | Identified Warp Gun 17039 | -2/Testing | Identified exit to Access 17039 | -2/Testing | Discovered exit to Access (range 15) 17045 | -2/Testing | Entered Access 17045 | -1/Access | Evolved 2 slots: Utility x1, Weapon x1 17102 | -1/Access | Spotted B-99 Colossus 17165 | -1/Access | Repaired Cmb. Linear Gravjet 17401 | -1/Access | Repaired Helical Railgun 17710 | -1/Access | Identified exit to Surface 17777 | -1/Access | Fabricated Lrn. Sensor Array (x1) 17825 | -1/Access | Identified exit to Command 17882 | -1/Access | Fabricated Helical Railgun? 18198 | -1/Access | P-80 Master assimilated allied Director 10a 18242 | -1/Access | Garrison activated, responded to threat 18757 | -1/Access | Crushed by falling debris 18764 | -1/Access | Spotted B-99 Colossus 18802 | -1/Access | Spotted B-99 Colossus 18821 | -1/Access | Entered Command 19138 | -1/Command | Repaired Helical Railgun? 19190 | -1/Command | Repaired Centrium Medium Armor Plating 19295 | -1/Command | Repaired Helical Railgun? 19413 | -1/Command | Repaired Helical Railgun 19505 | -1/Command | Disengaged cave seal 19552 | -1/Command | Welcomed Warlord to Command 19677 | -1/Command | Destroyed 13 combat bots 19707 | -1/Command | Spotted M Guard 19708 | -1/Command | Spotted Combat Programmer 19717 | -1/Command | Spotted Combat Programmer 19723 | -1/Command | Spotted M Guard 19724 | -1/Command | Warlord commented on Warlord statues 19727 | -1/Command | Spotted OZ-V8V(L) 19736 | -1/Command | Combat Programmer assimilated allied N1-T9P(d) 19745 | -1/Command | Destroyed OZ-V8V(L) 19775 | -1/Command | All MAIN.C guards destroyed 19821 | -1/Command | First assault squad dispatched 19867 | -1/Command | Met MAIN.C 19871 | -1/Command | Warlord shut down involuntarily 19871 | -1/Command | 0b10 Conduit disabled 19947 | -1/Command | Spotted Alpha 7 20053 | -1/Command | MAIN.C activated Command garrisons 20073 | -1/Command | P-80 Master assimilated allied 48-529(h) 20104 | -1/Command | Core integrity fell below 50% 20104 | -1/Command | System corruption reached 10% 20109 | -1/Command | Spotted Striker 20110 | -1/Command | Core integrity fell below 20% 20110 | -1/Command | Spotted Executioner 20110 | -1/Command | Spotted Executioner 20110 | -1/Command | Spotted Alpha 7 20113 | -1/Command | Destroyed by Alpha 7 with Heavy Quantum Rifle Last Messages --------------- 20110_ C-30 ARC bursts open, deploying its payload. 20110_ P-80 Master unfolds itself. 20110_ Exp. Targeting Computer destroyed. 20110_ Slug penetrates Wall. 20110_ Penetrated by Slug. 20110_ Slug penetrates Terminal. 20111_ Slug penetrates Wall. 20111_ Penetrated by Slug. 20111_ Exp. Hacking Suite destroyed. 20111_ Slug penetrates Wall. 20112_ P-80 Master resets H-88 Terminator, system corruption cleaned. 20112_ K-01 Serf collects debris. 20112_ Slug penetrates Door. 20113_ Acquired Biometal Leg. 20113_ Penetrated by Slug. 20113_ Slug penetrates P-80 Master. 20113_ P-80 Master suffers critical hit (Destroy). 20113_ Slug penetrates H-88 Terminator. [Achievement: 50k Club] Map ----- +----------------------------------------------------+ | ??????????# " #??????# #?? | | ??????????# # #??????# """"" #?? | | ?????????## #############"#??????# """T"" #?? | | ?????????# ############"######## " ### | | ?????????# # + | | ?????????# % + "" ### | | ?????????# ### ########"#####+# """" #?? | | ?????????## ##?# # """ # """" +? | | ??????????# #??# + ! ""T"" + "" #"" | | ??????????# #??# # " "" # #"" | | ??????????# #??# # [# #"" | | ?????????## ##?# # ! ##############"" | | ?????????# #?# # ! #????????????# | | ?????????# #?# # / #????????????# | | ?????????# #?# ########;#######????????????# | | ?????????# #?# #??????# #???????????????????## | | ????????####"#### ######## ##???????????????????? | | ????????# ## h #???????????????????? | | ????????# ## hp !% #???????????????????? | | ????????# ## hh #?????#?????????????? | | ????????# ## h """ = #???# # # # # ????? | | ????????####;###hxhh""T""*=% ### E E "???? | | ???????????# h " ""[[! k pK "???? | | ???????????#### s = =%[ /7 "??